[Event "3rd VIZAG GM-Open 2022"]
[Site "Visakapatnam"]
[Date "2022.06.13"]
[Round "2.13"]
[White "Adireddy Arjun"]
[Black "Nitin, S.."]
[Result "0-1"]
[ECO "B42"]
[WhiteElo "1898"]
[BlackElo "2399"]
[Annotator "TA"]
[PlyCount "86"]
[EventDate "2022.06.13"]
[EventType "swiss"]
[EventCountry "IND"]
[SourceTitle "playchess.com"]
[Source "ChessBase"]
[SourceQuality "1"]
[TimeControl "5400+30"]

{[%evp 21,85,-16,22,22,21,-7,-4,-199,-202,-181,-161,-176,-144,-158,-144,-142,-119,-147,-126,-242,-133,-122,-65,-188,-163,-332,-254,-392,-359,-368,-360,-520,-498,-486,-423,-445,-339,-418,-432,-627,-614,-811,-762,-936,-901,-890,-754,-745,-745,-2456,-2456,-1962,-1760,-2309,-2097,-1791,-1685,-1765,-1175,-1114,-1011,-1079,-1009,-975,-983,-29999]} 1. e4 {[%emt 1:31:00]} c5 {[%emt 1:31:00]} 2. Nf3 {[%emt 0:00:30]} e6 {[%emt 0:00:30]} 3. d4 {[%emt 0:00:30]} cxd4 {[%emt 0:00:30]} 4. Nxd4 {[%emt 0:00:30]} a6 {[%emt 0:00:30]} 5. Bd3 {[%emt 0:00:30]} Nf6 {[%emt 0:00:30]} 6. O-O {[%emt 0:00:30]} Qc7 {[%emt 0:00:30]} 7. c4 {[%emt 0:00:30]} Nc6 {[%emt 0:00:30]} 8. Nxc6 {[%emt 0:00:30]} dxc6 {[%emt 0:00:30]} 9. f4 {[%emt 0:00:30]} Bc5+ {[%emt 0:00:30]} 10. Kh1 {[%emt 0:00:30]} e5 {[%emt 0:00:30]} 11. f5 {[%emt 0:00:30]} h5 {[%emt 0:00:30]} 12. Nc3 {[%emt 0:00:30] B42: Sicilian: Kan Variation: 5 Bd3.} Ng4 {[%emt 0:00:30]} 13. Qe2 {[%emt 0:00:30] Against Nf2+} Qd8 {[%emt 0:00:30][%cal Og4h2] Hoping for ...Nxh2!} 14. Bc2 $2 {[%emt 0:00:30] [#]} (14. g3 $11) 14... Nxh2 $1 $19 {[%emt 0:00:30][%mdl 512]} 15. Rd1 {[%emt 0:00:30] [#]} Qe7 $40 {[%emt 0:00:30][%mdl 128] [#] White must now prevent ...Ng4. Black goes for the king.} 16. Be3 $146 {[%emt 0:00:30]} ({Avoid the trap} 16. f6 $2 Qxf6 $1 17. Qd2 Ng4 $19) ({Predecessor:} 16. Rd3 Ng4 17. Nd1 Bd7 18. Rh3 O-O-O 19. Ne3 Qd6 20. Rb1 g6 21. a3 gxf5 22. exf5 {0-1 (34) Ribeiro,F (2360)-Strikovic,A (2565) Vila Real de Santo Antonio 1998}) 16... Ng4 {[%emt 0:00:30]} 17. Bxc5 {[%emt 0:00:30]} Qxc5 {[%emt 0:00:30]} 18. Rd2 {[%emt 0:00:30]} b5 {[%emt 0:00:30][%cal Bb7b5,Bb5b4][%mdl 32]} 19. Bb3 {[%emt 0:00:30]} Qe7 {[%emt 0:00:30]} 20. g3 {[%emt 0:00:30] [#] Inhibits Qh4+.} (20. Qe1 $17 {was forced.}) 20... Qg5 {[%emt 0:00:30]} (20... h4 $1 $19 {[%cal Rh4g3]} 21. Qxg4 hxg3+ 22. Kg1 Qc5+ 23. Kf1 Rh1+ 24. Ke2 Rh2+ 25. Kd1 Qg1+ 26. Kc2 Qxa1 27. Qxg7 Rxd2+ 28. Kxd2 Qxb2+ 29. Kd3 Qf2 30. Qxe5+ Be6 $1 31. Qh8+ Ke7 32. Qxa8 bxc4+ 33. Bxc4 Qf1+ 34. Kc2 Bxc4 35. f6+ Kxf6 36. Qd8+ Kg6 37. Qg8+ Kh5 38. Qxg3 Qf6 39. Qh2+ Kg6) 21. Rad1 $17 {[%emt 0:00:30][%cal Rc4b5] [#]} O-O {[%emt 0:00:30]} (21... Bb7 $1 $17 {And now ...h4 would win.} 22. Rd3 (22. cxb5 h4 $17) 22... h4) 22. c5 {[%emt 0:00:30]} (22. Rd6 $15) 22... a5 {[%emt 0:00:30] Threatens to win with ...Ba6.} ({Worse is} 22... h4 23. Qf3 $17) 23. a3 $2 {[%emt 0:00:30]} (23. Rd6) 23... b4 {[%emt 0:00:30]} ({Stronger than} 23... h4 24. Qf3 $17) 24. Na4 {[%emt 0:00:30]} (24. axb4 {only move.} axb4 25. Na4) 24... Ba6 $19 {[%emt 0:00:30]} 25. Qf3 {[%emt 0:00:30]} Ne3 {[%emt 0:00:30]} 26. Re1 {[%emt 0:00:30] [#]} (26. Nb6 $142 Nxd1 27. Rxd1) 26... Nxf5 $1 {[%emt 0:00:30][%cal Be3f5,Bf5h6,Bh6g4][%mdl 544]} 27. Rf2 {[%emt 0:00:30]} Nh6 {[%emt 0:00:30]} 28. Rd1 {[%emt 0:00:30]} Bc8 {[%emt 0:00:30] aiming for ...Bg4.} 29. Rd6 {[%emt 0:00:30]} Be6 {[%emt 0:00:30]} 30. Rxc6 {[%emt 0:00:30]} (30. Re2 $142 Rab8 31. Bd1) 30... Ng4 {[%emt 0:00:30]} 31. Re2 {[%emt 0:00:30]} Rad8 {[%emt 0:00:30]} 32. Rd6 {[%emt 0:00:30]} Rxd6 {[%emt 0:00:30]} 33. cxd6 {[%emt 0:00:30]} Bxb3 {[%emt 0:00:30]} 34. Qxb3 {[%emt 0:00:30]} Qf6 {[%emt 0:00:30][%cal Rf6f1]} 35. Qd1 {[%emt 0:00:30] Inhibits Qf1+.} Qf3+ {[%emt 0:00:30]} 36. Kg1 {[%emt 0:00:30]} Qxg3+ {[%emt 0:00:30]} 37. Kh1 {[%emt 0:00:30]} Qf3+ {[%emt 0:00:30]} 38. Kg1 {[%emt 0:00:30]} Rd8 {[%emt 0:00:30] ( -> ...Ne3)} 39. d7 {[%emt 0:00:30] [#]} Nf2 $1 {[%emt 0:00:30][%mdl 512]} 40. Qd2 {[%emt 0:00:30]} Nh3+ {[%emt 0:00:30]} 41. Kh2 {[%emt 0:00:30]} Nf4 {[%emt 0:00:30]} 42. Re3 {[%emt 0:00:30] [#]} Rxd7 $3 {[%emt 0:00:30][%mdl 512]} 43. Qxd7 {[%emt 0:00:30]} (43. Rxf3 Rxd2+) 43... Qg2# {[%emt 0:00:30] Weighted Error Value: White=1.21/Black=0.33} 0-1

[Event "3rd VIZAG GM-Open 2022"]
[Site "Visakapatnam"]
[Date "2022.06.13"]
[Round "2.14"]
[White "Laxman, R.R."]
[Black "Nagarkatte Vedant"]
[Result "1-0"]
[ECO "D30"]
[WhiteElo "2420"]
[BlackElo "1871"]
[Annotator "TA"]
[PlyCount "57"]
[EventDate "2022.06.13"]
[EventType "swiss"]
[EventCountry "IND"]
[SourceTitle "playchess.com"]
[Source "ChessBase"]
[SourceQuality "1"]
[TimeControl "5400+30"]

{[%evp 11,57,15,25,20,37,47,104,42,32,33,39,24,38,-81,-70,-115,-109,-115,-117,-101,-122,-103,-102,-120,-102,-105,-93,-102,-103,-172,-172,-210,-171,-200,-200,-177,-68,-208,-200,-205,-206,-206,-139,-151,-127,-245,4870,1738]} 1. d4 {[%emt 1:31:00]} d5 {[%emt 1:31:00]} 2. Nf3 {[%emt 0:00:30]} c6 {[%emt 0:00:30]} 3. c4 {[%emt 0:00:30]} Nf6 {[%emt 0:00:30]} 4. e3 {[%emt 0:00:30]} e6 {[%emt 0:00:30]} 5. Bd3 {[%emt 0:00:30]} dxc4 {[%emt 0:00:30]} 6. Bxc4 {[%emt 0:00:30]} b5 {[%emt 0:00:30]} 7. Bd3 {[%emt 0:00:30] D30: Queen's Gambit Declined: Systems without Nc3.} Nbd7 {[%emt 0:00:30][%cal Bb8d7,Bd7c5,Bc5d3][%mdl 32]} 8. e4 {[%emt 0:00:30] [#]} e5 $146 {[%emt 0:00:30]} ({Black should try} 8... a6 $14) ({Predecessor:} 8... a6 9. e5 Nd5 10. a4 b4 11. O-O c5 12. Bg5 Qb6 13. a5 Qa7 14. Nbd2 h6 {1-0 (70) Barp,A (2388)-Ljukin,S (2362) Chess.com INT 2022}) 9. dxe5 {[%emt 0:00:30]} (9. O-O $16) 9... Nc5 $14 {[%emt 0:00:30] [#]} 10. O-O $1 {[%emt 0:00:30]} Qxd3 {[%emt 0:00:30]} 11. exf6 {[%emt 0:00:30]} gxf6 {[%emt 0:00:30]} 12. e5 {[%emt 0:00:30]} (12. Qxd3 $14 {stays ahead.} Nxd3 13. Rd1 Nxc1 14. Rxc1) 12... Bg4 $36 {[%emt 0:00:30][%mdl 2048] Threatens to win with ...Rg8. Black has the initiative.} 13. exf6 {[%emt 0:00:30] Hoping for Re1+.} O-O-O {[%emt 0:00:30]} 14. Qxd3 {[%emt 0:00:30]} Nxd3 {[%emt 0:00:30]} 15. Be3 {[%emt 0:00:30]} Bxf3 {[%emt 0:00:30]} ({Of course not} 15... Nxb2 16. Ne5 Rg8 17. Nxf7 $11 (17. Nxc6 Bf3 $11)) 16. gxf3 {[%emt 0:00:30]} Rg8+ {[%emt 0:00:30]} 17. Kh1 {[%emt 0:00:30]} Nxb2 {[%emt 0:00:30]} 18. Nc3 {[%emt 0:00:30]} Nc4 {[%emt 0:00:30]} 19. Ne4 {[%emt 0:00:30]} a6 {[%emt 0:00:30]} 20. a4 {[%emt 0:00:30]} (20. Rg1 $17 Rg6 21. Rg3) 20... Kb7 {[%emt 0:00:30]} 21. Rfd1 {[%emt 0:00:30]} Bb4 {[%emt 0:00:30]} 22. Bh6 {[%emt 0:00:30]} Nd6 {[%emt 0:00:30]} ({And not} 22... Rxd1+ 23. Rxd1 Ne5 24. axb5 $17) 23. Rab1 {[%emt 0:00:30]} a5 {[%emt 0:00:30]} ({Black should play} 23... Nxe4 $19 24. fxe4 Bc3) 24. Nxd6+ {[%emt 0:00:30]} (24. axb5 $15 Nxe4 25. bxc6+ Kxc6 26. fxe4) 24... Rxd6 $19 {[%emt 0:00:30]} 25. Rxd6 {[%emt 0:00:30]} Bxd6 {[%emt 0:00:30]} 26. axb5 c5 {[%emt 0:00:30]} 27. Rd1 {[%emt 0:01:00]} Rd8 {[%emt 0:00:30][%mdl 1024] Strongly threatening ...a4. Black has strong compensation.} 28. Bc1 {[%emt 0:00:30]} (28. Be3 $17) 28... Be7 $4 {[%emt 0:00:30][%mdl 8192] [#]} 29. fxe7 {[%emt 0:00:30] Quite a comeback for White.  Weighted Error Value: White=0.36/Black=0.18 (very precise)} 1-0

[Event "3rd VIZAG GM-Open 2022"]
[Site "Visakapatnam"]
[Date "2022.06.13"]
[Round "2.15"]
[White "Aditya Varun Gampa"]
[Black "Nguyen, Duc Hoa"]
[Result "1-0"]
[ECO "C30"]
[WhiteElo "1836"]
[BlackElo "2398"]
[Annotator "TA"]
[PlyCount "113"]
[EventDate "2022.06.13"]
[EventType "swiss"]
[EventCountry "IND"]
[SourceTitle "playchess.com"]
[Source "ChessBase"]
[SourceQuality "1"]
[TimeControl "5400+30"]

{[%evp 10,113,0,-8,26,33,52,58,112,100,144,0,-7,-20,-16,-103,-110,-107,-103,-104,-25,-10,-22,-22,-15,-86,-92,-304,0,0,231,227,259,235,242,235,233,219,225,222,223,212,620,144,154,143,193,205,220,182,197,197,218,218,240,243,241,241,241,246,242,211,231,227,226,226,260,249,280,264,466,460,499,487,511,518,578,579,849,491,1006,0,831,835,1277,412,611,0,1253,1254,29975,29976,29971,29972,29972,29974,29974,29975,29975,29975,29975,29976,29981,29982,29986,29987]} 1. e4 {[%emt 1:31:00]} e5 {[%emt 1:31:00]} 2. Nc3 {[%emt 0:00:30]} Nf6 {[%emt 0:00:30]} 3. Bc4 {[%emt 0:00:30]} Bc5 {[%emt 0:00:30]} 4. f4 {[%emt 0:00:30]} d6 {[%emt 0:00:30]} 5. Nf3 {[%emt 0:00:30]} O-O {[%emt 0:00:30]} 6. d3 {[%emt 0:00:30]} Ng4 {[%emt 0:00:30] And now ...Nf2 would win. C30: King's Gambit Declined.} 7. Qe2 {[%emt 0:00:30]} Nc6 {[%emt 0:00:30]} 8. f5 {[%emt 0:00:30]} Bf2+ {[%emt 0:00:30]} (8... Nf6 $14) 9. Kf1 $1 $16 {[%emt 0:00:30]} Bb6 {[%emt 0:00:30] [#]} 10. Ng5 $146 {[%emt 0:00:30]} ({Better is} 10. Bg5 $16 Nd4 11. Qd2 (11. Bxd8 Nxe2 12. Kxe2 Rxd8 $11)) ({Predecessor:} 10. Nd5 Kh8 11. h3 Nf6 12. Bg5 Nd4 13. Nxd4 Bxd4 14. c3 Bb6 15. Nxf6 gxf6 16. Bh4 {1-0 (24) Labussiere,V (2332)-Isaev,J (2296) Chess.com INT 2020}) 10... Nf6 $11 {[%emt 0:00:30] next ...Nd4 is good for Black.} 11. Nd5 {[%emt 0:00:30]} Nd4 $36 {[%emt 0:00:30][%mdl 2048] White is under pressure.} 12. Nxf6+ {[%emt 0:00:30]} (12. Qd1 $1 $11) 12... Qxf6 $17 {[%emt 0:00:30]} 13. Qd1 {[%emt 0:00:30]} c6 {[%emt 0:00:30][%cal Oc8f5]} (13... h6 $6 14. Nf3 $15) 14. g4 {[%emt 0:00:30]} (14. Qh5 $2 Bxf5 $1 {[%mdl 512]} 15. Bxf7+ Rxf7 16. Qxf7+ Qxf7 17. Nxf7 Bg4 $19) 14... d5 {[%emt 0:00:30]} (14... g6 $1 $17 {[%cal Rg6f5]} 15. c3 gxf5 16. cxd4 fxe4+ 17. Kg2 d5) 15. exd5 $11 {[%emt 0:00:30] aiming for Ne4.} h6 {[%emt 0:00:30]} 16. Ne4 {[%emt 0:00:30]} Qh4 {[%emt 0:00:30] Strongly threatening ...Qh3+.} 17. Kg2 {[%emt 0:00:30] Against Qh3+} (17. h3 $11 {keeps the balance.}) 17... g6 $1 $17 {[%emt 0:00:30]} (17... Nxc2 $6 18. Qxc2 cxd5 19. Bxd5 Qxg4+ 20. Ng3 Bxf5 21. Rf1 $11 (21. h3 Qg6 $11)) 18. fxg6 {[%emt 0:00:30]} (18. c3 $17 {was called for.} gxf5 19. cxd4 fxe4 20. h3) 18... fxg6 $2 {[%emt 0:00:30]} (18... Bxg4 19. Nf6+ Qxf6 20. Qxg4 fxg6 21. Rd1 $19) ({Black should try} 18... Kg7 $19 19. h3 f5) 19. h3 $11 {[%emt 0:00:30]} Rf3 $2 {[%emt 0:00:30]} (19... Nf3 $11 {and Black has nothing to worry.} 20. Qe2 Nd4 21. dxc6+ Kg7) 20. Qe1 $18 {[%emt 0:00:30]} (20. c3 $2 Bxg4 $1 {[%mdl 512]} 21. dxc6+ Kh7 22. cxd4 Bxd4 $1 $19) 20... Qxe1 {[%emt 0:00:30]} 21. Rxe1 {[%emt 0:00:30]} Nxc2 {[%emt 0:00:30] [#]} 22. Bxh6 $1 {[%emt 0:00:30]} Kh7 {[%emt 0:00:30]} (22... cxd5 23. Bxd5+) 23. Ng5+ {[%emt 0:00:30]} (23. Kxf3 $6 Kxh6 24. dxc6 bxc6) 23... Kxh6 {[%emt 0:00:30]} 24. Nxf3 {[%emt 0:00:30]} cxd5 {[%emt 0:00:30]} 25. Bxd5 {[%emt 0:00:30][%cal Oe1e5]} Ba5 $2 {[%emt 0:00:30] [#]} (25... Kg7 26. Rac1 Nxe1+ 27. Rxe1 Bd7 28. Rxe5 (28. Nxe5 Re8 $16) 28... Bd8) 26. Rac1 $2 {[%emt 0:00:30]} ({Less strong is} 26. g5+ Kg7 $16) (26. Rxe5 $1 $18 {is the precise move to win.} Nxa1 27. Re7 Bxg4 28. hxg4) 26... Nxe1+ $16 {[%emt 0:00:30]} 27. Nxe1 {[%emt 0:00:30]} Bd7 {[%emt 0:00:30]} (27... Bd2 $16 28. Rd1 Bf4) 28. Nf3 $18 {[%emt 0:00:30]} (28. Bxb7 $6 Rb8 29. b4 Bxb4 $14) 28... Re8 {[%emt 0:00:30]} 29. Be4 {[%emt 0:00:30]} Bb6 {[%emt 0:00:30]} 30. Bxb7 {[%emt 0:00:30]} Bb5 {[%emt 0:00:30]} 31. Be4 {[%emt 0:00:30]} ({But not} 31. Bc6 $6 Rc8 $16) 31... Bxd3 {[%emt 0:00:30]} 32. Bxd3 {[%emt 0:00:30]} ({Much less strong is} 32. g5+ Kg7 33. Bxd3 e4) 32... e4 {[%emt 0:00:30] [#]} 33. Bxe4 {[%emt 0:00:30]} Rxe4 {[%emt 0:00:30][%mdl 4096] Endgame KRB-KRN} 34. Re1 {[%emt 0:00:30] Against Re2+} Rc4 {[%emt 0:00:30]} 35. Re2 {[%emt 0:00:30] Prevents Rc2.} Kg7 {[%emt 0:00:30]} 36. b3 {[%emt 0:00:30]} Rc3 {[%emt 0:00:30]} 37. h4 {[%emt 0:00:30]} Bd8 {[%emt 0:00:30]} 38. Rd2 {[%emt 0:00:30]} Bb6 {[%emt 0:00:30]} 39. Rd7+ {[%emt 0:00:30]} Kg8 $2 {[%emt 0:00:30]} (39... Kf6 {is a better defense.} 40. Rd6+ Ke7 41. Rxg6 Rc2+ 42. Kh3 Rc3) 40. Ne5 {[%emt 0:00:30]} Rc2+ {[%emt 0:00:30]} 41. Kf3 {[%emt 0:00:30]} Rf2+ {[%emt 0:00:30]} 42. Ke4 {[%emt 0:00:30]} g5 {[%emt 0:00:30]} 43. hxg5 {[%emt 0:00:30]} Rxa2 {[%emt 0:00:30]} 44. Nf7 {[%emt 0:00:30] Nh6+ is the strong threat.} Kg7 {[%emt 0:00:30]} (44... Kf8 $142 45. Ne5 Bg1 46. Ng6+ Ke8) 45. Ne5+ {[%emt 0:00:30]} Kg8 {[%emt 0:00:30]} 46. Kf5 {[%emt 0:00:30]} Ra5 {[%emt 0:00:30]} 47. Ke6 {[%emt 0:00:30]} (47. Kf6 $142) 47... Ra6 {[%emt 0:00:30]} (47... Be3 $142 48. Nc4 Ra6+ 49. Kf5 Bc5) 48. Kf5 {[%emt 0:00:30]} (48. Rd6 $142 Ra1 49. Kf6 Rf1+ 50. Kg6) 48... Ra5 $1 {[%emt 0:00:30]} 49. Kf6 {[%emt 0:00:30] White wants to mate with g6.} Ra6 {[%emt 0:00:30]} 50. Rg7+ {[%emt 0:00:30] White mates.} Kf8 {[%emt 0:00:30]} 51. Nd7+ {[%emt 0:00:30]} Ke8 {[%emt 0:00:30]} 52. Re7+ {[%emt 0:00:30]} Kd8 {[%emt 0:00:30]} 53. Nxb6 {[%emt 0:00:30]} Rxb6+ {[%emt 0:00:30]} 54. Re6 {[%emt 0:00:30]} Rxb3 {[%emt 0:00:30]} 55. g6 {[%emt 0:00:30]} Rf3+ {[%emt 0:00:30]} 56. Kg5 {[%emt 0:00:30]} Kd7 {[%emt 0:00:30]} 57. Rf6 {[%emt 0:00:30] Weighted Error Value: White=0.51/Black=0.54} 1-0

[Event "3rd VIZAG GM-Open 2022"]
[Site "Visakapatnam"]
[Date "2022.06.13"]
[Round "2.17"]
[White "Sriansh Das"]
[Black "Nguyen, Van Huy"]
[Result "0-1"]
[ECO "B11"]
[WhiteElo "1731"]
[BlackElo "2405"]
[Annotator "TA"]
[PlyCount "76"]
[EventDate "2022.06.13"]
[EventType "swiss"]
[EventCountry "IND"]
[SourceTitle "playchess.com"]
[Source "ChessBase"]
[SourceQuality "1"]
[TimeControl "5400+30"]

{[%evp 17,76,25,23,0,-17,-43,12,9,14,19,7,0,14,-33,-33,-19,-14,0,-7,-11,0,11,29,0,0,-19,0,0,0,0,0,0,0,0,0,-118,-113,-109,-6,-14,-15,-8,-6,-50,0,-147,-140,-187,-172,-250,-235,-238,-216,-419,-410,-29995,-29996,-29996,-29994,-29997,-1272]} 1. e4 {[%emt 0:00:04]} c6 {[%emt 0:00:26]} 2. Nc3 {[%emt 0:00:10]} d5 {[%emt 0:00:50]} 3. Nf3 {[%emt 0:00:31]} Bg4 {[%emt 0:00:55]} 4. h3 {[%emt 0:00:18]} Bh5 {[%emt 0:00:17]} 5. exd5 {[%emt 0:05:34]} cxd5 {[%emt 0:00:25]} 6. g4 {[%emt 0:01:21]} Bg6 {[%emt 0:00:08]} 7. Bb5+ {[%emt 0:01:13]} Nc6 {[%emt 0:00:20]} 8. Ne5 {[%emt 0:00:38]} Rc8 {[%emt 0:00:24]} 9. d4 {[%emt 0:10:54]} e6 {[%emt 0:00:49]} 10. Bf4 {[%emt 1:14:47] B11: Caro-Kann: Two Knights Variation.} (10. Qe2 $5 {[%cal Rh3h4]}) 10... Bd6 11. h4 {And now h5 would win.} f6 (11... Bxe5 $15 12. Bxe5 (12. dxe5 h5 $17) 12... f6) 12. Nxg6 $11 {The position is equal.} hxg6 13. Bxd6 Qxd6 14. Qd3 Kf7 15. Bxc6 {[#]} (15. Qd2 $11 {is more appropriate.}) 15... bxc6 $146 ({Predecessor:} 15... Rxc6 16. O-O-O Ne7 17. Kb1 Qb4 18. Ne2 Qc4 19. Qd2 a5 20. h5 gxh5 21. gxh5 Nf5 {1-0 (38) Darazs,Z (2157)-Kovacs,A (2001) Budapest 2012}) 16. Ne2 {Against Qf4} c5 17. O-O-O Ne7 18. dxc5 Rxc5 19. f4 Rb8 20. Rd2 (20. Kb1 $142) 20... Ra5 $11 21. Kb1 Qb4 {[%csl Gb8][%cal Rb4b2]} 22. c3 $1 Qa4 23. b4 $1 Rc5 {aiming for ...a5.} 24. Rb2 Rc4 25. Nd4 Nc6 $36 {[%mdl 2048] Threatens to win with ...Nxd4. Black has some pressure.} 26. Nxc6 (26. h5 $1 $11 gxh5 27. gxh5 (27. Nxe6 $2 Kxe6 28. gxh5 Kd6 $17) 27... Nxd4 28. Qg6+ Ke7 29. Qxg7+ Kd6 30. Qxf6) 26... Qxc6 $17 27. h5 {[#]} Re4 (27... Rxf4 $2 28. Qxg6+ Ke7 29. Qxg7+ Kd6 30. Qxa7 $18) ({Much worse is} 27... gxh5 $6 28. gxh5 Rxc3 29. Qg6+ Kf8 30. h6 $11) (27... d4 $1 $17 28. Rc1 (28. Qxg6+ Kg8 $17) (28. hxg6+ $2 Ke7 $19) 28... Rxc3 29. hxg6+ Ke7) 28. hxg6+ Kxg6 29. f5+ ({Reject} 29. b5 Qc4 30. f5+ (30. Qh3 $2 Kf7 $19) 30... Kf7 31. Qxc4 Rxc4 $17) 29... Kf7 30. Rd1 Rc8 ({Better is} 30... Rxg4 $15 31. fxe6+ Qxe6) 31. g5 (31. Rb3 $1 $11) 31... exf5 32. gxf6 (32. Rg2 $17 {keeps fighting.}) 32... Kxf6 $19 33. b5 (33. Rb3 $142) 33... Qc4 34. Qg3 Qc7 35. Qf2 (35. Qd3) 35... Qxc3 36. Qxa7 {[#]} (36. b6 $19 axb6 37. Rxb6+ Rc6 38. Rxc6+ Qxc6 39. Qb2+ Kf7 40. Qb3) 36... Qd3+ $3 {[%mdl 512] Black mates.} 37. Ka1 Qxd1+ 38. Rb1 {[%emt 0:00:00] [#]} Qd4+ {Weighted Error Value: White=0.48/Black=0.14 (very precise)} (38... Qxb1+ $142 $3 39. Kxb1 Rb4+ 40. Ka1 Rc1#) 0-1

[Event "3rd VIZAG GM-Open 2022"]
[Site "Visakapatnam"]
[Date "2022.06.13"]
[Round "2.18"]
[White "Abdurakhmonov, Mukhammadali"]
[Black "Ankit Ray"]
[Result "1-0"]
[ECO "E06"]
[WhiteElo "2308"]
[BlackElo "1932"]
[Annotator "TA"]
[PlyCount "83"]
[EventDate "2022.06.13"]
[EventType "swiss"]
[EventCountry "IND"]
[SourceTitle "playchess.com"]
[Source "ChessBase"]
[SourceQuality "1"]
[TimeControl "5400+30"]

{[%evp 14,83,31,17,32,0,0,0,10,-17,78,71,71,71,101,92,104,91,126,130,199,127,137,136,143,126,135,114,139,138,165,107,131,109,132,112,154,130,235,226,358,355,348,355,436,350,337,320,362,348,354,352,342,301,382,387,487,479,573,514,522,518,497,515,496,497,493,502,546,504,538,526]} 1. d4 {[%emt 0:01:46]} Nf6 {[%emt 0:01:27]} 2. Nf3 {[%emt 0:00:33]} d5 {[%emt 0:01:45]} 3. c4 {[%emt 0:00:09]} e6 {[%emt 0:02:00]} 4. g3 {[%emt 0:00:06]} Be7 {[%emt 0:02:04]} 5. Qc2 {[%emt 0:00:44]} O-O {[%emt 0:02:27]} 6. Bg2 {[%emt 0:00:18]} a6 {[%emt 1:23:47]} 7. Bf4 dxc4 8. Qxc4 Nd5 {E06: Closed Catalan: Early deviations.} 9. Bd2 b5 10. Qc2 Bb7 {[%cal Oc7c5] [#] The position is equal.} 11. Nc3 $146 ({Predecessor:} 11. O-O Nd7 12. Ba5 Qb8 13. Nc3 Nxc3 14. Bxc3 Nf6 15. b4 Be4 16. Qb3 Qb7 17. Rac1 a5 18. a3 Nd5 19. bxa5 Nxc3 20. Qxc3 Ra7 {½-½ (20) Postny,E (2578)-Savic,M (2421) Paracin 2021}) 11... Nc6 (11... Nf6 $11 {remains equal.}) 12. Nxd5 $16 exd5 13. O-O Bf6 14. e3 Qd7 15. Rfc1 Rfe8 16. Ne1 Nd8 (16... Be7 $16 17. Nd3 Bd6) 17. Nd3 (17. Qxc7 $18 Qf5 18. a4) 17... Ne6 18. Bh3 Be7 19. Ne5 Qd6 20. Nc6 (20. Qf5 Bf6 $14) 20... Bxc6 21. Qxc6 b4 22. a3 (22. Qxd6 $18 Bxd6 23. Bg2) 22... bxa3 23. bxa3 a5 24. a4 Red8 25. Rab1 Ng5 (25... Qxc6 $16 26. Rxc6 Bb4) 26. Bg2 $18 Qa3 (26... Qxc6 {keeps fighting.} 27. Rxc6 Ne4) 27. Bxd5 Qd3 28. Be1 {This bishop pair is nice.} Bb4 29. Bg2 ({Resist} 29. Bxb4 axb4 30. Qxa8 Rxa8 $18) 29... Bxe1 30. Rxe1 {[#] Black must now prevent Qb5.} Qf5 31. Rb5 ({Much less strong is} 31. Qxc7 Nh3+ 32. Bxh3 Qxh3 $18) 31... Nh3+ 32. Bxh3 {Active counter play!} Qxh3 33. Reb1 ({Don't take} 33. Qxc7 Rdc8 34. Qb7 Qe6) 33... g6 34. Qxc7 Rdc8 35. Rb8 {White is clearly winning.} Qf5 {[%cal Of5b1] [#] Strongly threatening ...Qxb1+!} 36. Qxc8+ Qxc8 37. Rxc8+ Rxc8 {KR-KR} 38. Rb5 Ra8 39. Kf1 Kf8 40. Ke2 Ke7 41. Kd3 Kd6 {[%emt 0:00:00]} 42. e4 {Weighted Error Value: White=0.17 (very precise) /Black=0.38} 1-0